Workbook

Sheet Reg1
B1: 22.5 | D1: 23 | F1: 23.5 | H1: الاجمـــــالى
A2: التــــــاريخ | B2: كجم | C2: طن | D2: كجم | E2: طن | F2: كجم | G2: طن | H2: كجم | I2: طن
A3: 2021-04-05 | B3: 26 | C3: 34 | D3: 27 | E3: 22 | F3: 31 | G3: 50 | H3: =MOD(SUM(B3+D3+F3),1000) -> 84 | I3: =TRUNC(SUM(C3+E3+G3)+SUM(B3+D3+F3)/1000) -> 106
A4: 2021-04-06 | B4: 49 | C4: 13 | D4: 46 | E4: 30 | F4: 38 | G4: 16 | H4: =MOD(SUM(B4+D4+F4),1000) -> 133 | I4: =TRUNC(SUM(C4+E4+G4)+SUM(B4+D4+F4)/1000) -> 59
A5: 2021-04-07 | B5: 44 | C5: 11 | D5: 36 | E5: 37 | F5: 19 | G5: 11 | H5: =MOD(SUM(B5+D5+F5),1000) -> 99 | I5: =TRUNC(SUM(C5+E5+G5)+SUM(B5+D5+F5)/1000) -> 59
A6: 2021-04-08 | B6: 47 | C6: 33 | D6: 18 | E6: 24 | F6: 17 | G6: 22 | H6: 82 | I6: 79
A7: 2021-04-09 | B7: 36 | C7: 26 | D7: 28 | E7: 32 | F7: 50 | G7: 31 | H7: 114 | I7: 89
A8: 2021-04-10 | B8: 32 | C8: 17 | D8: 34 | E8: 21 | F8: 42 | G8: 36 | H8: 108 | I8: 74
A9: 2021-04-11 | B9: 17 | C9: 15 | D9: 18 | E9: 25 | F9: 11 | G9: 28 | H9: 46 | I9: 68
A10: 2021-04-12 | B10: 25 | C10: 50 | D10: 36 | E10: 16 | F10: 18 | G10: 49 | H10: 79 | I10: 115
A11: 2021-04-13 | B11: 13 | C11: 36 | D11: 32 | E11: 37 | F11: 37 | G11: 19 | H11: 82 | I11: 92
A12: 2021-04-14 | B12: 39 | C12: 35 | D12: 44 | E12: 16 | F12: 37 | G12: 15 | H12: 120 | I12: 66
A13: 2021-04-15 | B13: 24 | C13: 34 | D13: 38 | E13: 28 | F13: 23 | G13: 20 | H13: 85 | I13: 82

Sheet Reg2
B1: 22.5 | D1: 23 | F1: 23.5 | H1: الاجمـــــالى
A2: التــــــاريخ | B2: كجم | C2: طن | D2: كجم | E2: طن | F2: كجم | G2: طن | H2: كجم | I2: طن
A3: 2021-04-05 | B3: 31 | C3: 50 | D3: 22 | E3: 48 | F3: 33 | G3: 48 | H3: =MOD(SUM(B3+D3+F3),1000) -> 86 | I3: =TRUNC(SUM(C3+E3+G3)+SUM(B3+D3+F3)/1000) -> 146
A4: 2021-04-06 | B4: 35 | C4: 36 | D4: 37 | E4: 25 | F4: 12 | G4: 25 | H4: =MOD(SUM(B4+D4+F4),1000) -> 84 | I4: =TRUNC(SUM(C4+E4+G4)+SUM(B4+D4+F4)/1000) -> 86
A5: 2021-04-07 | B5: 12 | C5: 24 | D5: 35 | E5: 37 | F5: 14 | G5: 30 | H5: =MOD(SUM(B5+D5+F5),1000) -> 61 | I5: =TRUNC(SUM(C5+E5+G5)+SUM(B5+D5+F5)/1000) -> 91
A6: 2021-04-08 | B6: 19 | C6: 41 | D6: 42 | E6: 41 | F6: 46 | G6: 34 | H6: 107 | I6: 116
A7: 2021-04-09 | B7: 28 | C7: 49 | D7: 14 | E7: 24 | F7: 21 | G7: 49 | H7: 63 | I7: 122
A8: 2021-04-10 | B8: 44 | C8: 15 | D8: 24 | E8: 45 | F8: 17 | G8: 13 | H8: 85 | I8: 73
A9: 2021-04-11 | B9: 47 | C9: 22 | D9: 33 | E9: 27 | F9: 20 | G9: 31 | H9: 100 | I9: 80
A10: 2021-04-12 | B10: 38 | C10: 19 | D10: 49 | E10: 38 | F10: 18 | G10: 41 | H10: 105 | I10: 98
A11: 2021-04-13 | B11: 49 | C11: 49 | D11: 15 | E11: 30 | F11: 31 | G11: 13 | H11: 95 | I11: 92
A12: 2021-04-14 | B12: 22 | C12: 17 | D12: 19 | E12: 25 | F12: 33 | G12: 19 | H12: 74 | I12: 61
A13: 2021-04-15 | B13: 47 | C13: 14 | D13: 26 | E13: 33 | F13: 47 | G13: 48 | H13: 120 | I13: 95

Sheet Reg3
B1: 22.5 | D1: 23 | F1: 23.5 | H1: الاجمـــــالى
A2: التــــــاريخ | B2: كجم | C2: طن | D2: كجم | E2: طن | F2: كجم | G2: طن | H2: كجم | I2: طن
A3: 2021-04-05 | B3: 49 | C3: 15 | D3: 31 | E3: 26 | F3: 44 | G3: 41 | H3: =MOD(SUM(B3+D3+F3),1000) -> 124 | I3: =TRUNC(SUM(C3+E3+G3)+SUM(B3+D3+F3)/1000) -> 82
A4: 2021-04-06 | B4: 49 | C4: 15 | D4: 19 | E4: 14 | F4: 43 | G4: 36 | H4: =MOD(SUM(B4+D4+F4),1000) -> 111 | I4: =TRUNC(SUM(C4+E4+G4)+SUM(B4+D4+F4)/1000) -> 65
A5: 2021-04-07 | B5: 44 | C5: 49 | D5: 32 | E5: 24 | F5: 27 | G5: 43 | H5: =MOD(SUM(B5+D5+F5),1000) -> 103 | I5: =TRUNC(SUM(C5+E5+G5)+SUM(B5+D5+F5)/1000) -> 116
A6: 2021-04-08 | B6: 25 | C6: 16 | D6: 10 | E6: 43 | F6: 22 | G6: 20 | H6: 57 | I6: 79
A7: 2021-04-09 | B7: 36 | C7: 32 | D7: 26 | E7: 24 | F7: 41 | G7: 19 | H7: 103 | I7: 75
A8: 2021-04-10 | B8: 46 | C8: 21 | D8: 29 | E8: 32 | F8: 33 | G8: 32 | H8: 108 | I8: 85
A9: 2021-04-11 | B9: 39 | C9: 21 | D9: 24 | E9: 10 | F9: 15 | G9: 12 | H9: 78 | I9: 43
A10: 2021-04-12 | B10: 29 | C10: 29 | D10: 18 | E10: 37 | F10: 21 | G10: 17 | H10: 68 | I10: 83
A11: 2021-04-13 | B11: 10 | C11: 50 | D11: 32 | E11: 32 | F11: 42 | G11: 14 | H11: 84 | I11: 96
A12: 2021-04-14 | B12: 45 | C12: 27 | D12: 16 | E12: 46 | F12: 27 | G12: 21 | H12: 88 | I12: 94
A13: 2021-04-15 | B13: 39 | C13: 21 | D13: 37 | E13: 41 | F13: 42 | G13: 28 | H13: 118 | I13: 90

Sheet Reg4
B1: 22.5 | D1: 23 | F1: 23.5 | H1: الاجمـــــالى
A2: التــــــاريخ | B2: كجم | C2: طن | D2: كجم | E2: طن | F2: كجم | G2: طن | H2: كجم | I2: طن
A3: 2021-04-05 | B3: 12 | C3: 22 | D3: 28 | E3: 21 | F3: 14 | G3: 41 | H3: =MOD(SUM(B3+D3+F3),1000) -> 54 | I3: =TRUNC(SUM(C3+E3+G3)+SUM(B3+D3+F3)/1000) -> 84
A4: 2021-04-06 | B4: 19 | C4: 31 | D4: 40 | E4: 31 | F4: 24 | G4: 34 | H4: =MOD(SUM(B4+D4+F4),1000) -> 83 | I4: =TRUNC(SUM(C4+E4+G4)+SUM(B4+D4+F4)/1000) -> 96
A5: 2021-04-07 | B5: 27 | C5: 42 | D5: 32 | E5: 42 | F5: 33 | G5: 13 | H5: =MOD(SUM(B5+D5+F5),1000) -> 92 | I5: =TRUNC(SUM(C5+E5+G5)+SUM(B5+D5+F5)/1000) -> 97
A6: 2021-04-08 | B6: 26 | C6: 49 | D6: 12 | E6: 16 | F6: 32 | G6: 31 | H6: 70 | I6: 96
A7: 2021-04-09 | B7: 33 | C7: 37 | D7: 39 | E7: 35 | F7: 10 | G7: 42 | H7: 82 | I7: 114
A8: 2021-04-10 | B8: 50 | C8: 43 | D8: 24 | E8: 28 | F8: 43 | G8: 17 | H8: 117 | I8: 88
A9: 2021-04-11 | B9: 17 | C9: 28 | D9: 36 | E9: 12 | F9: 31 | G9: 18 | H9: 84 | I9: 58
A10: 2021-04-12 | B10: 13 | C10: 46 | D10: 40 | E10: 23 | F10: 50 | G10: 38 | H10: 103 | I10: 107
A11: 2021-04-13 | B11: 32 | C11: 18 | D11: 38 | E11: 20 | F11: 40 | G11: 44 | H11: 110 | I11: 82
A12: 2021-04-14 | B12: 24 | C12: 14 | D12: 28 | E12: 25 | F12: 43 | G12: 49 | H12: 95 | I12: 88
A13: 2021-04-15 | B13: 39 | C13: 18 | D13: 11 | E13: 31 | F13: 14 | G13: 23 | H13: 64 | I13: 72

Sheet Reg5
B1: 22.5 | D1: 23 | F1: 23.5 | H1: الاجمـــــالى
A2: التــــــاريخ | B2: كجم | C2: طن | D2: كجم | E2: طن | F2: كجم | G2: طن | H2: كجم | I2: طن
A3: 2021-04-05 | B3: 18.35 | C3: 50 | D3: 13 | E3: 41 | F3: 37 | G3: 16 | H3: =MOD(SUM(B3+D3+F3),1000) -> 68.35 | I3: =TRUNC(SUM(C3+E3+G3)+SUM(B3+D3+F3)/1000) -> 107
A4: 2021-04-06 | B4: 14 | C4: 47 | D4: 16 | E4: 40 | F4: 14 | G4: 48 | H4: =MOD(SUM(B4+D4+F4),1000) -> 44 | I4: =TRUNC(SUM(C4+E4+G4)+SUM(B4+D4+F4)/1000) -> 135
A5: 2021-04-07 | B5: 28 | C5: 13 | D5: 20 | E5: 45 | F5: 20 | G5: 38 | H5: =MOD(SUM(B5+D5+F5),1000) -> 68 | I5: =TRUNC(SUM(C5+E5+G5)+SUM(B5+D5+F5)/1000) -> 96
A6: 2021-04-08 | B6: 22 | C6: 34 | D6: 12 | E6: 15 | F6: 17 | G6: 19 | H6: 51 | I6: 68
A7: 2021-04-09 | B7: 12 | C7: 48 | D7: 41 | E7: 49 | F7: 15 | G7: 17 | H7: 68 | I7: 114
A8: 2021-04-10 | B8: 47 | C8: 36 | D8: 26 | E8: 18 | F8: 37 | G8: 28 | H8: 110 | I8: 82
A9: 2021-04-11 | B9: 41 | C9: 43 | D9: 20 | E9: 50 | F9: 32 | G9: 45 | H9: 93 | I9: 138
A10: 2021-04-12 | B10: 43 | C10: 33 | D10: 20 | E10: 25 | F10: 43 | G10: 32 | H10: 106 | I10: 90
A11: 2021-04-13 | B11: 44 | C11: 35 | D11: 12 | E11: 39 | F11: 11 | G11: 43 | H11: 67 | I11: 117
A12: 2021-04-14 | B12: 10 | C12: 25 | D12: 16 | E12: 21 | F12: 32 | G12: 18 | H12: 58 | I12: 64
A13: 2021-04-15 | B13: 27 | C13: 41 | D13: 10 | E13: 30 | F13: 27 | G13: 24 | H13: 64 | I13: 95

Sheet Total
B1: 22.5 | D1: 23 | F1: 23.5 | H1: الاجمـــــالى
A2: التــــــاريخ | B2: كجم | C2: طن | D2: كجم | E2: طن | F2: كجم | G2: طن | H2: كجم | I2: طن
A3: 2021-04-05 | B3: 136.35 | C3: 171 | D3: 121 | E3: 158 | F3: 159 | G3: 196 | H3: =MOD(SUM(B3,D3,F3),1000) -> 416.35 | I3: =TRUNC(SUM(C3,E3,G3)+SUM(B3,D3,F3)/1000) -> 525
A4: 2021-04-06 | B4: 166 | C4: 142 | D4: 158 | E4: 140 | F4: 131 | G4: 159 | H4: =MOD(SUM(B4,D4,F4),1000) -> 455 | I4: =TRUNC(SUM(C4,E4,G4)+SUM(B4,D4,F4)/1000) -> 441
A5: 2021-04-07 | B5: 155 | C5: 139 | D5: 155 | E5: 185 | F5: 113 | G5: 135 | H5: 423 | I5: 459
A6: 2021-04-08 | B6: 139 | C6: 173 | D6: 94 | E6: 139 | F6: 134 | G6: 126 | H6: 367 | I6: 438
A7: 2021-04-09 | B7: 145 | C7: 192 | D7: 148 | E7: 164 | F7: 137 | G7: 158 | H7: 430 | I7: 514
A8: 2021-04-10 | B8: 219 | C8: 132 | D8: 137 | E8: 144 | F8: 172 | G8: 126 | H8: 528 | I8: 402
A9: 2021-04-11 | B9: 161 | C9: 129 | D9: 131 | E9: 124 | F9: 109 | G9: 134 | H9: 401 | I9: 387
A10: 2021-04-12 | B10: 148 | C10: 177 | D10: 163 | E10: 139 | F10: 150 | G10: 177 | H10: 461 | I10: 493
A11: 2021-04-13 | B11: 148 | C11: 188 | D11: 129 | E11: 158 | F11: 161 | G11: 133 | H11: 438 | I11: 479
A12: 2021-04-14 | B12: 140 | C12: 118 | D12: 123 | E12: 133 | F12: 172 | G12: 122 | H12: 435 | I12: 373
A13: 2021-04-15 | B13: 176 | C13: 128 | D13: 122 | E13: 163 | F13: 153 | G13: 143 | H13: 451 | I13: 434
